bitfinex-derivatives/quotes_BTCF0:USTF0_20240825
["timestamp","ask_amount","ask_price","bid_price","bid_amount"]
[1724555206707,0.46216378,64139.0,64138.0,0.07792]
[1724555206908,0.10136378,64139.0,64138.0,0.07792]
[1724555207407,0.46216378,64139.0,64138.0,0.12457366]
[1724555209308,0.10136378,64139.0,64138.0,0.12457366]
[1724555209608,0.46216378,64139.0,64138.0,0.12457366]
[1724555211412,0.46216378,64139.0,64138.0,0.07792]
[1724555211806,0.10136378,64139.0,64138.0,0.07792]
[1724555212010,0.46216378,64139.0,64138.0,0.07792]
[1724555212213,0.36296221,64139.0,64138.0,0.07792]
[1724555212411,0.36296221,64139.0,64138.0,0.14013213]
[1724555214112,0.36296221,64139.0,64138.0,0.23013213]
[1724555216913,0.36296221,64139.0,64138.0,0.16792]
[1724555218819,0.00216221,64139.0,64138.0,0.16792]
[1724555221415,0.00216221,64139.0,64138.0,0.18039]
[1724555221819,0.00216221,64139.0,64138.0,0.09039]
[1724555223717,0.00216221,64139.0,64138.0,0.18039]
[1724555248731,0.00216221,64139.0,64138.0,0.25817016]
[1724555253733,0.00216221,64139.0,64138.0,0.37690298]
[1724555255538,0.00216221,64139.0,64138.0,0.25817016]
[1724555256129,0.00216221,64139.0,64138.0,0.3769033]
[1724555258924,0.00112001,64143.0,64142.0,0.077916]
[1724555259126,0.07751302,64146.0,64142.0,0.4508]
[1724555259334,0.07751302,64146.0,64145.0,0.167912]
[1724555259537,0.00023378,64149.0,64145.0,0.167912]
[1724555259538,0.07751302,64148.0,64145.0,0.09]
[1724555259729,0.00023378,64149.0,64148.0,0.077908]
[1724555259730,0.0777468,64149.0,64148.0,0.077908]
[1724555260470,0.00023378,64149.0,64148.0,0.077908]
[1724555260732,0.00023378,64149.0,64148.0,0.090378]
[1724555260940,0.00123378,64149.0,64148.0,0.090378]
[1724555261638,0.00223378,64149.0,64148.0,0.090378]
[1724555266134,0.00223378,64149.0,64148.0,0.13710088]
[1724555267834,0.00223378,64149.0,64148.0,0.090378]
[1724555271052,0.00223378,64149.0,64148.0,0.15273076]
[1724555271346,0.00223378,64149.0,64148.0,0.15263522]
[1724555271541,0.00223378,64149.0,64148.0,0.090378]
[1724555273347,0.00223378,64149.0,64148.0,0.15262135]
[1724555274844,0.00223378,64149.0,64148.0,0.090378]
[1724555275740,0.00223378,64149.0,64148.0,0.180378]
[1724555278044,0.3608,64156.0,64155.0,0.0779]
[1724555278249,0.3608,64156.0,64155.0,0.1679]
[1724555278461,0.3608,64156.0,64155.0,0.21455173]
[1724555279155,0.3618,64156.0,64155.0,0.1679]
[1724555279444,0.001,64156.0,64155.0,0.1679]
[1724555279647,0.001,64156.0,64155.0,0.23011041]
[1724555280151,0.001,64156.0,64155.0,0.24257041]
[1724555280653,0.001,64156.0,64155.0,0.18036]
[1724555282852,0.001,64156.0,64155.0,0.18981037]
[1724555286256,0.001,64156.0,64155.0,0.25202078]
[1724555286457,0.00023378,64162.0,64155.0,0.25202078]
[1724555286458,0.00023378,64162.0,64161.0,0.077892]
[1724555286688,0.00023378,64162.0,64161.0,0.528692]
[1724555287852,0.03832048,64162.0,64161.0,0.528692]
[1724555288655,0.04532048,64162.0,64161.0,0.528692]
[1724555290657,0.01523378,64162.0,64161.0,0.528692]
[1724555291555,0.01523378,64162.0,64161.0,0.57532611]
[1724555292259,0.01523378,64162.0,64161.0,0.528692]
[1724555295668,0.01523378,64162.0,64161.0,0.57532611]
[1724555296471,0.01523378,64162.0,64161.0,0.528692]
[1724555296958,0.01523378,64162.0,64161.0,0.57532991]
[1724555297461,0.01523378,64162.0,64161.0,0.528692]
[1724555299665,0.4228201,64171.0,64170.0,0.077882]
[1724555299966,0.4228201,64171.0,64170.0,0.167882]
[1724555300271,0.3608,64171.0,64170.0,0.167882]
[1724555301167,0.3748,64171.0,64170.0,0.167882]
[1724555301558,0.3888,64171.0,64170.0,0.168882]
[1724555303269,0.028,64171.0,64170.0,0.168882]
[1724555307769,0.028,64171.0,64170.0,0.21553001]
[1724555308169,0.028,64171.0,64170.0,0.22464972]
[1724555308375,0.028,64171.0,64170.0,0.17800171]
[1724555309376,0.028,64171.0,64170.0,0.22465068]
[1724555310780,0.028,64171.0,64170.0,0.17800171]
[1724555311903,0.028,64171.0,64170.0,0.53880171]
[1724555316879,0.028,64171.0,64170.0,0.60101212]
[1724555317574,0.028,64171.0,64170.0,0.24021212]
[1724555317774,0.014,64171.0,64170.0,0.60001212]
[1724555318005,0.016,64171.0,64170.0,0.60001212]
[1724555318278,0.016,64171.0,64170.0,0.23921212]
[1724555318473,0.016,64171.0,64170.0,0.60001212]
[1724555318883,0.002,64171.0,64170.0,0.60001212]
[1724555319086,0.005,64171.0,64170.0,0.60001212]
[1724555319288,0.005,64171.0,64170.0,0.23921212]
[1724555319479,0.005,64171.0,64170.0,0.60001212]
[1724555320176,0.005,64171.0,64170.0,0.23921212]
[1724555320382,0.005,64171.0,64170.0,0.60001212]
[1724555321481,0.005,64171.0,64170.0,0.53780171]
[1724555326779,0.005,64171.0,64170.0,0.17700171]
[1724555326985,0.005,64171.0,64170.0,0.53780171]
[1724555329381,0.11351823,64171.0,64170.0,0.55026171]
[1724555330089,0.14359877,64171.0,64170.0,0.55026171]
[1724555330595,0.03508054,64171.0,64170.0,0.55026171]
[1724555331691,0.03508054,64171.0,64170.0,0.18946171]
[1724555331891,0.03508054,64171.0,64170.0,0.38591323]
[1724555331892,0.005,64171.0,64170.0,0.38591323]
[1724555332093,0.005,64171.0,64170.0,0.74671323]
[1724555332695,0.005,64171.0,64170.0,0.38591323]
[1724555333298,0.005,64171.0,64170.0,0.74671323]
[1724555334787,0.005,64171.0,64170.0,0.38591323]
[1724555334989,0.005,64171.0,64170.0,0.74671323]
[1724555335194,0.005,64171.0,64170.0,0.38591323]
[1724555335393,0.005,64171.0,64170.0,0.74671323]
[1724555335907,0.005,64171.0,64170.0,0.74671324]
[1724555336101,0.005,64171.0,64170.0,0.38591324]
[1724555336401,0.005,64171.0,64170.0,0.74671324]
[1724555337002,0.005,64171.0,64170.0,0.38591324]
[1724555337192,0.005,64171.0,64170.0,0.74671324]
[1724555338601,0.005,64171.0,64170.0,0.38591324]
[1724555338804,0.005,64171.0,64170.0,0.74671324]
[1724555339402,0.005,64171.0,64170.0,0.66893308]
[1724555340099,0.005,64171.0,64170.0,0.30813308]
[1724555340501,0.005,64171.0,64170.0,0.66893308]
[1724555342213,0.005,64171.0,64170.0,0.66893313]
[1724555344103,0.005,64171.0,64170.0,0.57893313]
[1724555344311,0.005,64171.0,64170.0,0.74684081]
[1724555345807,0.005,64171.0,64170.0,0.38604081]
[1724555349103,0.005,64171.0,64170.0,0.38604285]
[1724555350709,0.005,64171.0,64170.0,0.30813536]
[1724555355114,0.06215813,64173.0,64172.0,0.077879]
[1724555355305,0.07793144,64177.0,64176.0,0.077874]
[1724555355616,0.00023378,64177.0,64176.0,0.167874]
[1724555356015,0.00023378,64177.0,64176.0,0.36443817]
[1724555356314,0.00023378,64177.0,64176.0,0.30601431]
[1724555356710,0.00923378,64177.0,64176.0,0.30701431]
[1724555357111,0.01723378,64177.0,64176.0,0.32047431]
[1724555357514,0.01723378,64177.0,64176.0,0.30099642]
[1724555357915,0.01723378,64177.0,64176.0,0.32047398]
[1724555358110,0.3608,64187.0,64186.0,0.077862]
[1724555358415,0.407,64187.0,64186.0,0.167862]
[1724555359411,0.407,64187.0,64186.0,0.169862]
[1724555359412,0.432,64187.0,64186.0,0.169862]
[1724555359614,0.432,64187.0,64186.0,0.23212651]
[1724555360211,0.432,64187.0,64186.0,0.169862]
[1724555360212,0.0712,64187.0,64186.0,0.169862]
[1724555360811,0.0712,64187.0,64186.0,0.21651506]
[1724555361329,0.0712,64187.0,64186.0,0.169862]
[1724555366519,0.0712,64187.0,64186.0,0.22565064]
[1724555368724,0.0712,64187.0,64186.0,0.17904559]
[1724555369729,0.0712,64187.0,64186.0,0.19150559]
[1724555372218,0.1012738,64187.0,64186.0,0.19150559]
[1724555374925,0.0712,64187.0,64186.0,0.19150559]
[1724555380234,0.0712,64187.0,64186.0,0.11364359]
[1724555380334,0.0712,64187.0,64186.0,0.16024864]
[1724555380530,0.0712,64187.0,64186.0,0.11364359]
[1724555381533,0.0712,64187.0,64186.0,0.16024864]
[1724555382328,0.0712,64187.0,64186.0,0.11364359]
[1724555383004,0.0712,64187.0,64186.0,0.19150559]
[1724555383140,0.432,64187.0,64186.0,0.19150559]
[1724555385134,0.432,64187.0,64186.0,0.2537701]
[1724555385450,0.421,64187.0,64186.0,0.1637701]
[1724555385639,0.421,64187.0,64186.0,0.2537701]
[1724555387148,0.421,64187.0,64186.0,0.19150559]
[1724555388141,0.421,64187.0,64186.0,0.25379193]
[1724555388942,0.421,64187.0,64186.0,0.24460834]
[1724555392149,0.0602,64187.0,64186.0,0.24460834]
[1724555392349,0.421,64187.0,64186.0,0.24460834]
[1724555392547,0.421,64187.0,64186.0,0.182322]
[1724555396054,0.421,64187.0,64186.0,0.24461443]
[1724555397551,0.421,64187.0,64186.0,0.182322]
[1724555398152,0.421,64187.0,64186.0,0.22903879]
[1724555398377,0.49851027,64187.0,64186.0,0.22903879]
[1724555401357,0.421,64187.0,64186.0,0.182322]
[1724555402248,0.498861,64187.0,64186.0,0.182322]
[1724555402444,0.588861,64187.0,64180.0,0.07806441]
[1724555402658,0.438668,64181.0,64180.0,0.00023378]
[1724555403046,0.438668,64181.0,64180.0,0.07810278]
[1724555403245,0.55321807,64181.0,64180.0,0.07810278]
[1724555403444,0.42901025,64181.0,64180.0,0.07810278]
[1724555403753,0.42901025,64181.0,64180.0,0.08010278]
[1724555404003,0.06821025,64181.0,64180.0,0.08010278]
[1724555404257,0.03507854,64181.0,64180.0,0.08465278]
[1724555404550,0.08121025,64181.0,64180.0,0.08465278]
[1724555406154,0.013,64181.0,64180.0,0.14694462]
[1724555417159,0.013,64181.0,64180.0,0.08465278]
[1724555422365,0.07509484,64181.0,64180.0,0.08465278]
[1724555422669,0.013,64181.0,64180.0,0.08465278]
[1724555422853,0.07509484,64181.0,64180.0,0.08465278]
[1724555423456,0.07509484,64181.0,64180.0,0.14693195]
[1724555423679,0.07509484,64181.0,64180.0,0.23693195]
[1724555425667,0.013,64181.0,64180.0,0.17465278]
[1724555426465,0.02229403,64181.0,64180.0,0.17465278]
[1724555427964,0.02229403,64181.0,64180.0,0.23693195]
[1724555428160,0.02229403,64181.0,64180.0,0.14693195]
[1724555428361,0.02229403,64181.0,64180.0,0.23693195]
[1724555428759,0.013,64181.0,64180.0,0.23693195]
[1724555429465,0.013,64181.0,64180.0,0.23694785]
[1724555431461,0.013,64181.0,64180.0,0.17465278]
[1724555434358,0.12166222,64181.0,64180.0,0.17465278]
[1724555434959,0.15173966,64181.0,64180.0,0.17465278]
[1724555435362,0.08120775,64181.0,64180.0,0.17465278]
[1724555435561,0.04307744,64181.0,64180.0,0.17465278]
[1724555437260,0.013,64181.0,64180.0,0.17465278]
[1724555441872,0.07517436,64181.0,64180.0,0.17465278]
[1724555442967,0.013,64181.0,64180.0,0.17465278]
[1724555443172,0.07517241,64181.0,64180.0,0.17465278]
[1724555444681,0.013,64181.0,64180.0,0.17465278]
[1724555444863,0.07517121,64181.0,64180.0,0.17465278]
[1724555446673,0.013,64181.0,64180.0,0.17465278]
[1724555446872,0.0751707,64181.0,64180.0,0.17465278]
[1724555448061,0.07516996,64181.0,64180.0,0.17465278]
[1724555450271,0.013,64181.0,64180.0,0.17465278]
[1724555451372,0.013,64181.0,64180.0,0.08465278]
[1724555451575,0.013,64181.0,64180.0,0.17465278]
[1724555459078,0.07769497,64184.0,64182.0,0.077867]
[1724555459276,0.07769497,64184.0,64183.0,0.15231449]
[1724555460585,0.08369497,64184.0,64183.0,0.23118049]
[1724555461075,0.08369497,64184.0,64183.0,0.23573049]
[1724555461278,0.08569497,64184.0,64183.0,0.23573049]
[1724555461883,0.08569497,64184.0,64183.0,0.23673049]
[1724555462575,0.008,64184.0,64183.0,0.174416]
[1724555465585,0.008,64184.0,64183.0,0.535216]
[1724555466484,0.008,64184.0,64183.0,0.59752366]
[1724555466987,0.008,64184.0,64183.0,0.535216]
[1724555467990,0.07016353,64184.0,64183.0,0.535216]
[1724555468484,0.008,64184.0,64183.0,0.535216]
[1724555469107,0.076201,64184.0,64183.0,0.535216]
[1724555469280,0.03807446,64184.0,64183.0,0.535216]
[1724555471489,0.008,64184.0,64183.0,0.535216]
[1724555472287,0.008,64184.0,64183.0,0.54301778]
[1724555472483,0.008,64184.0,64183.0,0.62088378]
[1724555472684,0.008,64184.0,64183.0,0.71518378]
[1724555472887,0.07789685,64193.0,64183.0,0.71518378]
[1724555472888,0.00023378,64193.0,64188.0,0.07786]
[1724555473190,0.0621363,64198.0,64192.0,0.5286114]
[1724555473381,0.0621363,64199.0,64197.0,0.09]
[1724555473693,0.0621363,64199.0,64196.0,0.06224352]
[1724555473694,0.0621363,64202.0,64198.0,0.1366]
[1724555473882,0.0484,64207.0,64205.0,0.077839]
[1724555474083,0.0484,64207.0,64206.0,0.09]
[1724555474484,0.3608,64210.0,64206.0,0.09]
[1724555474685,0.3608,64210.0,64209.0,0.09]
[1724555476297,0.409,64211.0,64209.0,0.09]
[1724555476793,0.409,64211.0,64209.0,0.091]
[1724555477188,0.409,64211.0,64209.0,0.092]
[1724555477690,0.409,64211.0,64209.0,0.091]
[1724555477995,0.409,64211.0,64209.0,0.092]
[1724555478492,0.0482,64211.0,64209.0,0.092]
[1724555478697,0.409,64211.0,64209.0,0.092]
[1724555479590,0.0773816,64210.0,64209.0,0.092]
[1724555480491,0.4863816,64211.0,64209.0,0.169834]
[1724555482090,0.409,64211.0,64209.0,0.079834]
[1724555482496,0.07734105,64210.0,64209.0,0.079834]
[1724555482886,0.15517405,64210.0,64209.0,0.079834]
[1724555483091,0.077833,64210.0,64209.0,0.079834]
[1724555483299,0.077833,64210.0,64209.0,0.002]
[1724555483718,0.077844,64201.0,64200.0,0.00023378]
[1724555483902,0.077844,64201.0,64194.0,0.23724635]
[1724555483903,0.52813255,64201.0,64194.0,0.23724635]
[1724555484196,0.51266076,64195.0,64190.0,0.077857]
[1724555484393,0.51266076,64195.0,64188.0,0.0008]
[1724555484394,0.13971676,64191.0,64181.0,0.3616]
[1724555484598,0.077856,64191.0,64189.0,0.09]
[1724555484793,0.06186076,64190.0,64189.0,0.09]
[1724555486597,0.077856,64191.0,64189.0,0.09]
[1724555487697,0.001,64190.0,64189.0,0.09]
[1724555488202,0.077856,64191.0,64189.0,0.09]
[1724555488400,0.078856,64191.0,64189.0,0.09]
[1724555489399,0.3608,64190.0,64189.0,0.09]
[1724555489601,0.078856,64191.0,64189.0,0.09]
[1724555489801,0.3618,64190.0,64189.0,0.09]
[1724555490001,0.001,64190.0,64189.0,0.09]
[1724555490700,0.077856,64191.0,64189.0,0.09]
[1724555490901,0.078856,64191.0,64189.0,0.09]
[1724555492799,0.001,64190.0,64189.0,0.09]
[1724555493904,0.078856,64191.0,64189.0,0.09]
[1724555494838,0.078856,64191.0,64189.0,0.167858]
[1724555496197,0.001,64190.0,64189.0,0.167858]
[1724555496907,0.077856,64191.0,64189.0,0.167858]
[1724555497106,0.078856,64191.0,64189.0,0.167858]
[1724555498102,0.078856,64191.0,64190.0,0.077857]
[1724555498299,0.077856,64191.0,64190.0,0.077857]
[1724555500400,0.078856,64191.0,64190.0,0.077857]
[1724555504710,0.001,64191.0,64190.0,0.077857]
[1724555506104,0.0453,64194.0,64190.0,0.077857]
[1724555506299,0.001,64191.0,64190.0,0.077857]
[1724555507808,0.0463,64194.0,64190.0,0.077857]
[1724555508009,0.0463,64194.0,64193.0,0.09]
[1724555509611,0.0453,64194.0,64193.0,0.09]
[1724555510415,0.0463,64194.0,64193.0,0.167854]
[1724555512105,0.001,64194.0,64193.0,0.167854]
[1724555512511,0.06286076,64194.0,64193.0,0.21449925]
[1724555512715,0.001,64194.0,64193.0,0.167854]
[1724555513509,0.001,64194.0,64193.0,0.22370136]
[1724555515502,0.001,64194.0,64193.0,0.58450136]
[1724555517313,0.001,64194.0,64193.0,0.44785611]
[1724555518621,0.001,64194.0,64193.0,0.49457397]
[1724555519220,0.001,64194.0,64193.0,0.13377397]
[1724555522112,0.001,64194.0,64193.0,0.22377397]
[1724555522312,0.001,64194.0,64193.0,0.17705611]
[1724555524924,0.091,64194.0,64193.0,0.077854]
[1724555525123,0.091,64194.0,64193.0,0.12457457]
[1724555528730,0.168852,64194.0,64193.0,0.12457457]
[1724555528928,0.168852,64194.0,64191.0,0.04672057]
[1724555529219,0.168852,64194.0,64188.0,0.04672057]
[1724555529220,0.54399569,64192.0,64188.0,0.04672057]
[1724555529420,0.07786,64188.0,64187.0,0.04672057]
[1724555529723,0.077861,64187.0,64186.0,0.04672057]
[1724555529922,0.077862,64186.0,64185.0,0.04672057]
[1724555530114,0.51634454,64186.0,64185.0,0.04672057]
[1724555530421,0.438662,64186.0,64185.0,0.04672057]
[1724555530643,0.438662,64186.0,64185.0,0.06219367]
[1724555531324,0.077862,64186.0,64185.0,0.06219367]
[1724555531633,0.077862,64186.0,64184.0,0.07809778]
[1724555531634,0.077862,64186.0,64184.0,0.14029145]
[1724555532518,0.077862,64186.0,64185.0,0.002]
[1724555532923,0.077862,64186.0,64184.0,0.14429145]
[1724555533123,0.077862,64186.0,64184.0,0.14729145]
[1724555533633,0.077862,64186.0,64185.0,0.002]
[1724555534722,0.077862,64186.0,64185.0,0.005]
[1724555535122,0.077862,64186.0,64185.0,0.06719367]
[1724555535332,0.077862,64186.0,64185.0,0.003]
[1724555535530,0.077862,64186.0,64185.0,0.06519367]
[1724555535826,0.077862,64186.0,64185.0,0.003]
[1724555536132,0.077862,64186.0,64185.0,0.005]
[1724555536721,0.10793724,64186.0,64185.0,0.005]
[1724555537130,0.03007524,64186.0,64185.0,0.005]
[1724555538331,0.03007514,64186.0,64185.0,0.005]
[1724555539664,0.1358,64188.0,64185.0,0.06719367]
[1724555539833,0.0458,64188.0,64185.0,0.23505667]
[1724555541126,0.0458,64188.0,64185.0,0.23205667]
[1724555541331,0.0458,64188.0,64185.0,0.23505667]
[1724555541529,0.0458,64188.0,64186.0,0.06219367]
[1724555541727,0.0458,64188.0,64185.0,0.23505667]
[1724555542122,0.0458,64188.0,64186.0,0.06219367]
[1724555542723,0.0458,64188.0,64186.0,0.04968031]
[1724555542935,0.0458,64188.0,64187.0,0.077861]
[1724555543134,0.0458,64188.0,64187.0,0.438661]
[1724555543337,0.09314716,64195.0,64187.0,0.438661]
[1724555543338,0.07762263,64192.0,64191.0,0.077856]
[1724555543524,0.07762263,64192.0,64191.0,0.167856]
[1724555544930,0.07762263,64193.0,64191.0,0.167856]
[1724555545128,0.001,64192.0,64191.0,0.077856]
[1724555545521,0.07862263,64192.0,64191.0,0.077856]
[1724555546927,0.07762263,64192.0,64191.0,0.077856]
[1724555547332,0.07762263,64192.0,64191.0,0.08736357]
[1724555547842,0.07862263,64192.0,64191.0,0.08736357]
[1724555552839,0.001,64192.0,64191.0,0.13404388]
[1724555553242,0.001,64192.0,64191.0,0.08736357]
[1724555558643,0.001,64192.0,64191.0,0.13404388]
[1724555565844,0.0787152,64192.0,64191.0,0.08736357]
[1724555568952,0.001,64192.0,64191.0,0.08736357]
[1724555569151,0.001,64192.0,64191.0,0.13409438]
[1724555571754,0.001,64192.0,64191.0,0.08736357]
[1724555572255,0.001,64192.0,64191.0,0.077856]
[1724555572256,0.078855,64192.0,64191.0,0.077856]
[1724555579854,0.10892919,64192.0,64191.0,0.077856]
[1724555580068,0.14705538,64192.0,64191.0,0.077856]
[1724555582760,0.078855,64192.0,64191.0,0.077856]
[1724555583567,0.15659084,64192.0,64191.0,0.14004967]
[1724555584163,0.07873584,64192.0,64191.0,0.14004967]
[1724555584965,0.07873584,64192.0,64191.0,0.23004967]
[1724555591467,0.07873584,64192.0,64191.0,0.14004967]
[1724555593358,0.15659084,64192.0,64191.0,0.14004967]
[1724555593473,0.15659084,64192.0,64191.0,0.077856]
[1724555594070,0.15659084,64192.0,64191.0,0.14004967]
[1724555595372,0.15659084,64192.0,64191.0,0.077856]
[1724555596973,0.15659084,64192.0,64191.0,0.06230999]
[1724555596974,0.078855,64192.0,64191.0,0.06230999]
[1724555601567,0.077856,64191.0,64190.0,0.06230999]
[1724555601773,0.167856,64191.0,64190.0,0.06230999]
[1724555603672,0.24559184,64191.0,64190.0,0.06230999]
[1724555603871,0.167856,64191.0,64190.0,0.06230999]
[1724555604475,0.168856,64191.0,64190.0,0.06230999]
[1724555604679,0.24659184,64191.0,64190.0,0.06230999]
[1724555605077,0.168856,64191.0,64190.0,0.06230999]
[1724555605480,0.24659184,64191.0,64190.0,0.06230999]
[1724555606274,0.168856,64191.0,64190.0,0.06230999]
[1724555610152,0.168856,64191.0,64188.0,0.06230999]
[1724555610282,0.07786,64188.0,64187.0,0.06230999]
[1724555610585,0.077861,64187.0,64186.0,0.06230999]
[1724555610784,0.167861,64187.0,64186.0,0.06230999]
[1724555611484,0.077862,64186.0,64185.0,0.06230999]
[1724555612481,0.077863,64185.0,64184.0,0.06254377]
[1724555613006,0.167863,64185.0,64184.0,0.06254377]
[1724555613696,0.167863,64185.0,64184.0,0.00023378]
[1724555613890,0.167863,64185.0,64184.0,0.04694203]
[1724555614391,0.167863,64185.0,64184.0,0.04994203]
[1724555614988,0.167863,64185.0,64184.0,0.05394203]
[1724555616983,0.167863,64185.0,64184.0,0.00723378]
[1724555617991,0.17738252,64185.0,64184.0,0.00723378]
[1724555627190,0.167863,64185.0,64184.0,0.00723378]
[1724555627895,0.077863,64185.0,64184.0,0.00723378]
[1724555637605,0.077863,64185.0,64184.0,0.06954377]
[1724555639499,0.077863,64185.0,64184.0,0.00723378]
[1724555639700,0.167863,64185.0,64184.0,0.00723378]
[1724555642109,0.167863,64185.0,64184.0,0.06955185]
[1724555642505,0.167863,64185.0,64184.0,0.00723378]
[1724555643604,0.167863,64185.0,64184.0,0.06955227]
[1724555644207,0.167863,64185.0,64184.0,0.00723378]
[1724555650312,0.245726,64185.0,64184.0,0.00723378]
[1724555650507,0.077871,64179.0,64178.0,0.06231077]
[1724555650710,0.606542,64179.0,64178.0,0.06231077]
[1724555650908,0.60633738,64179.0,64176.0,0.06231077]
[1724555651114,0.0481,64178.0,64176.0,0.06231077]
[1724555651552,0.0481,64178.0,64171.0,0.0778114]
[1724555651553,0.077874,64176.0,64175.0,0.06231077]
[1724555651717,0.167874,64176.0,64175.0,0.06231077]
[1724555652510,0.167874,64176.0,64174.0,0.06231077]
[1724555652511,0.077875,64175.0,64174.0,0.06231077]
[1724555652711,0.167875,64175.0,64174.0,0.06231077]
[1724555653513,0.077877,64174.0,64173.0,0.06231077]
[1724555654121,0.077878,64173.0,64172.0,0.06231077]
[1724555654420,0.077878,64173.0,64171.0,0.06254455]
[1724555654421,0.077879,64172.0,64171.0,0.06254455]
[1724555654611,0.077879,64172.0,64171.0,0.00023378]
[1724555654812,0.167879,64172.0,64171.0,0.00023378]
[1724555656250,0.167879,64172.0,64171.0,0.01423378]
[1724555656817,0.167879,64172.0,64171.0,0.02823378]
[1724555657615,0.167879,64172.0,64171.0,0.07489128]
[1724555657922,0.167879,64172.0,64171.0,0.02823378]
[1724555659337,0.167879,64172.0,64171.0,0.07489128]
[1724555659512,0.167879,64172.0,64171.0,0.02823378]
[1724555661219,0.167879,64172.0,64171.0,0.07489128]
[1724555661418,0.216379,64172.0,64171.0,0.07489128]
[1724555661614,0.216379,64172.0,64171.0,0.02823378]
[1724555676925,0.08745751,64175.0,64171.0,0.02823378]
[1724555677125,0.077876,64175.0,64174.0,0.09]
[1724555677925,0.077876,64175.0,64174.0,0.167877]
[1724555678821,0.09,64176.0,64175.0,0.077875]
[1724555679527,0.36999084,64177.0,64176.0,0.077874]
[1724555679528,0.3608,64177.0,64176.0,0.077874]
[1724555680528,0.43846638,64177.0,64176.0,0.077874]
[1724555680831,0.43846638,64177.0,64176.0,0.089874]
[1724555681436,0.43846638,64177.0,64176.0,0.101874]
[1724555682832,0.07766638,64177.0,64176.0,0.101874]
[1724555683033,0.07766638,64177.0,64176.0,0.1485315]
[1724555683435,0.167872,64178.0,64177.0,0.077873]
[1724555684530,0.167872,64178.0,64177.0,0.088873]
[1724555686129,0.09,64178.0,64177.0,0.088873]
[1724555686337,0.09,64178.0,64177.0,0.099873]
[1724555687983,0.167872,64178.0,64177.0,0.099873]
[1724555689033,0.077872,64178.0,64177.0,0.099873]
[1724555689240,0.167872,64178.0,64177.0,0.099873]
[1724555690530,0.167872,64178.0,64177.0,0.022]
[1724555695842,0.077872,64178.0,64177.0,0.022]
[1724555696850,0.167872,64178.0,64177.0,0.022]
[1724555699835,0.215072,64178.0,64177.0,0.022]
[1724555706738,0.575872,64178.0,64177.0,0.022]
[1724555708542,0.653744,64178.0,64177.0,0.022]
[1724555711248,1.121184,64178.0,64177.0,0.022]
[1724555714551,0.653744,64178.0,64177.0,0.022]
[1724555715852,0.7469123,64178.0,64177.0,0.022]
[1724555718351,0.077877,64174.0,64173.0,0.0466575]
[1724555718555,0.167877,64174.0,64173.0,0.0466575]
[1724555719458,0.167877,64174.0,64173.0,0.014]
[1724555719651,0.167877,64174.0,64173.0,0.028]
[1724555722463,0.17742266,64174.0,64173.0,0.028]
[1724555723461,0.53822266,64174.0,64173.0,0.028]
[1724555725167,0.44822266,64174.0,64173.0,0.028]
[1724555725479,0.53822266,64174.0,64173.0,0.028]
[1724555726870,0.53822266,64174.0,64173.0,0.0746575]
[1724555728860,0.17742266,64174.0,64173.0,0.0746575]
[1724555730057,0.17742266,64174.0,64173.0,0.028]
[1724555735267,0.08742266,64174.0,64173.0,0.028]
[1724555735563,0.00023378,64183.0,64178.0,0.077872]
[1724555735766,0.03008291,64182.0,64181.0,0.09]
[1724555736463,0.00023378,64183.0,64181.0,0.167868]
[1724555736767,0.00123378,64183.0,64181.0,0.21460828]
[1724555736962,0.00123378,64183.0,64181.0,0.22060828]
[1724555737467,0.00123378,64183.0,64181.0,0.167868]
[1724555737665,0.00123378,64183.0,64181.0,0.173868]
[1724555738764,0.00123378,64183.0,64182.0,0.077867]
[1724555739357,0.07881716,64183.0,64182.0,0.077867]
[1724555739563,0.00123378,64183.0,64182.0,0.077867]
[1724555740366,0.00123378,64183.0,64182.0,0.082867]
[1724555741269,0.00023378,64183.0,64182.0,0.087867]
[1724555742571,0.00023378,64183.0,64182.0,0.13460728]
[1724555743356,0.00023378,64183.0,64182.0,0.087867]
[1724555746163,0.00023378,64183.0,64182.0,0.448667]
[1724555746563,0.00023378,64183.0,64182.0,0.087867]
[1724555746772,0.00023378,64183.0,64182.0,0.177867]
[1724555753670,0.00023378,64183.0,64182.0,0.087867]
[1724555757180,0.43889978,64183.0,64182.0,0.01]
[1724555758077,0.36103378,64183.0,64179.0,0.04674028]
[1724555758272,0.09,64180.0,64179.0,0.04674028]
[1724555758471,0.077871,64179.0,64178.0,0.04674028]
[1724555758671,0.264771,64179.0,64178.0,0.04674028]
[1724555758882,0.077872,64178.0,64177.0,0.04674028]
[1724555759093,0.077872,64178.0,64176.0,0.04674028]
[1724555759094,0.077873,64177.0,64176.0,0.04674028]
[1724555759284,0.09,64177.0,64176.0,0.04665092]
[1724555759577,0.077878,64173.0,64172.0,0.04665092]
[1724555759781,0.528678,64173.0,64172.0,0.04665092]
[1724555760978,0.529678,64173.0,64172.0,0.06065092]
[1724555761307,0.529678,64173.0,64172.0,0.014]
[1724555761898,0.530678,64173.0,64172.0,0.018]
[1724555766592,0.169878,64173.0,64172.0,0.018]
[1724555766796,0.530678,64173.0,64172.0,0.018]
[1724555773289,0.169878,64173.0,64172.0,0.018]
[1724555773595,0.530678,64173.0,64172.0,0.018]
[1724555778901,0.169878,64173.0,64172.0,0.018]
[1724555779094,0.530678,64173.0,64172.0,0.018]
[1724555779295,0.608556,64173.0,64172.0,0.018]
[1724555780898,0.247756,64173.0,64172.0,0.018]
[1724555781101,0.608556,64173.0,64172.0,0.018]
[1724555781497,0.930678,64173.0,64160.0,0.04665092]
[1724555781798,0.077895,64159.0,64158.0,0.04665092]
[1724555782000,0.077896,64158.0,64157.0,0.04665092]
[1724555782200,0.077897,64157.0,64156.0,0.04665092]
[1724555783202,0.063897,64157.0,64156.0,0.04665092]
[1724555783400,0.064897,64157.0,64156.0,0.008]